fUSD/lending_fUSD_20240204
["ID","MTS","AMOUNT","RATE_DAILY","PERIOD"]
[313268457,1707061838651,-2048.01963368,0.00039,2]
[313268458,1707061838661,-622.66081302,0.00039,4]
[313268459,1707061838670,-192.35,0.00039039,2]
[313268460,1707061838680,-1812.0,0.00039047,20]
[313268462,1707061838689,-339.0,0.00039047,20]
[313268464,1707061838699,-171.98,0.00039051,2]
[313268465,1707061838708,-150.0,0.0003909,2]
[313268466,1707061838717,-350.83,0.0003926,2]
[313268467,1707061838727,-150.0,0.00039366,2]
[313268468,1707061838736,-4582.62,0.0003957,2]
[313268469,1707061838745,-4810.77420662,0.00039584,2]
[313268470,1707061838754,-150.0,0.00039772,2]
[313268471,1707061838763,-188.64,0.00039865,2]
[313268472,1707061838773,-153.50961558,0.0003998,5]
[313268473,1707061838782,-220.30751523,0.0003999,2]
[313268474,1707061838791,-155.0,0.00039995,2]
[313268475,1707061838800,-4687.86877052,0.00039999,4]
[313268476,1707061838810,-208.3247096,0.00039999,4]
[313268477,1707061838819,-531.25496853,0.0004,10]
[313268478,1707061838828,-2279.09360945,0.0004,4]
[313268479,1707061838837,-2689.55318047,0.0004,4]
[313268480,1707061838846,-5487.50915205,0.0004,4]
[313268481,1707061838855,-1060.7777393,0.0004,30]
[313268482,1707061838865,-3200.0,0.0004,4]
[313268483,1707061838874,-22117.68647422,0.0004,4]
[313268484,1707061838883,-400.00050884,0.0004,120]
[313268485,1707061838893,-54488.91732862,0.0004,4]
[313268486,1707061838905,-571.36387681,0.0004,4]
[313268487,1707061838914,-83704.56321334,0.0004,4]
[313268488,1707061838923,-1088.67175974,0.0004,4]
[313268489,1707061838932,-161.9394079,0.0004,2]
[313268490,1707061838941,-255.0,0.0004,12]
[313268491,1707061838950,-255.0,0.0004,12]
[313268492,1707061838959,-255.0,0.0004,12]
[313268493,1707061838968,-255.0,0.0004,12]
[313268494,1707061838979,-255.0,0.0004,12]
[313268495,1707061838988,-255.0,0.0004,12]
[313268496,1707061838997,-150.0,0.00040375,2]
[313268497,1707061839006,-546.70658259,0.00040379,5]
[313268498,1707061839015,-150.0,0.00040455,2]
[313268499,1707061839024,-871.87,0.00040503,2]
[313268500,1707061839034,-272.61770195,0.00040543,9]
[313268501,1707061839043,-201.0,0.00040572,19]
[313268502,1707061839052,-192.35,0.00040683,2]
[313268503,1707061839062,-350.83,0.00040733,2]
[313268504,1707061839075,-263.39763163,0.00040851,13]
[313268505,1707061839085,-263.3976316,0.00040851,13]
[313268506,1707061839095,-4582.62,0.00040888,2]
[313268507,1707061839104,-800.0,0.00041,2]
[313268508,1707061839113,-432.0,0.00041096,5]
[313268509,1707061839122,-177.97,0.00041096,2]
[313268510,1707061839132,-182.58,0.00041096,30]
[313268511,1707061839141,-228.39,0.00041096,2]
[313268512,1707061839150,-150.0,0.00041138,2]
[313268513,1707061839160,-150.0,0.00041384,2]
[313268514,1707061839170,-410.68800768,0.00041438,7]
[313268515,1707061839179,-184.44407164,0.00041522,4]
[313268516,1707061839189,-1604.0,0.0004179,2]
[313268517,1707061839198,-399.0,0.0004179,2]
[313268518,1707061839207,-465.64419467,0.00041799,2]
[313268519,1707061839216,-320.43682234,0.00041799,2]
[313268520,1707061839226,-2823.52992529,0.000418,4]
[313268521,1707061839235,-178.34454767,0.00041801,4]
[313268522,1707061839245,-1807.03,0.00041802,5]
[313268523,1707061839254,-7294.98741766,0.00041813,11]
[313268524,1707061839263,-105157.58367,0.00041813,8]
[313268525,1707061839273,-150.0,0.00041821,2]
[313268526,1707061839282,-963.315,0.00041851,7]
[313268527,1707061839291,-162.0,0.00041851,120]
[313268528,1707061839300,-227.94659068,0.00041851,19]
[313268529,1707061839309,-152.58121554,0.00041851,120]
[313268530,1707061839319,-500.0,0.00041851,120]
[313268531,1707061839328,-270.76670175,0.00041851,120]
[313268532,1707061839338,-771.1608686,0.00041851,2]
[313268533,1707061839348,-5018.98489474,0.00041851,120]
[313268534,1707061839357,-516.336765,0.00041851,30]
[313268535,1707061839366,-399.802059,0.00041851,30]
[313268536,1707061839376,-4810.77420662,0.00041868,2]
[313268537,1707061839385,-546.70658259,0.00041958,5]
[313268538,1707061839394,-200.0,0.00042,2]
[313268539,1707061839403,-188.64,0.00042129,2]
[313268540,1707061839413,-272.61770195,0.00042164,10]
[313268541,1707061839422,-350.83,0.00042205,2]
[313268542,1707061839431,-150.0,0.00042394,2]
[313268543,1707061839445,-755.4247957,0.000425,10]
[313268544,1707061839454,-150.0,0.00042504,2]
[313268545,1707061839463,-201.0,0.00042731,24]
[313268546,1707061839473,-263.3976316,0.00042775,15]
[313268547,1707061839482,-500.0,0.00043,60]
[313268548,1707061839492,-150.0,0.00043186,2]
[313268549,1707061839501,-1000.0,0.000432,10]
[313268550,1707061839510,-1000.0,0.000433,2]
[313268551,1707061839519,-150.0,0.00043403,2]
[313268552,1707061839528,-546.70658259,0.00043537,5]
[313268553,1707061839537,-350.83,0.00043677,2]
[313268554,1707061839546,-2213.0,0.0004369,2]
[313268555,1707061839556,-537.0,0.0004369,2]
[313268556,1707061839565,-272.61770195,0.00043786,11]
[313268557,1707061839574,-5372.72753671,0.0004379,11]
[313268558,1707061839622,-1922.25988095,0.0004379,11]
[313268559,1707061839631,-1956.22098551,0.000438,2]
[313268560,1707061839643,-6043.77901449,0.000438,2]
[313268561,1707061839652,-666.0,0.00043835,2]
[313268562,1707061839661,-1840.65,0.00043836,15]
[313268563,1707061839670,-150.0,0.00043869,2]
[313268564,1707061839679,-155.42229511,0.00043875,4]
[313268565,1707061839689,-289.5366055,0.00044,30]
[313268566,1707061839698,-1383.0,0.0004409,2]
[313268567,1707061839707,-344.0,0.0004409,2]
[313268568,1707061839716,-323.55210632,0.000441,2]
[313268569,1707061839725,-4810.77420662,0.00044151,2]
[313268570,1707061839734,-1830.40365244,0.00044268,4]
[313268571,1707061839743,-188.64,0.00044393,2]
[313268572,1707061839752,-150.0,0.00044412,2]
[313268573,1707061839762,-150.0,0.00044552,2]
[313268574,1707061839771,-871.87,0.00044554,2]
[313268575,1707061839781,-7294.98741766,0.00044875,12]
[313268576,1707061839790,-2753.8,0.00044886,120]
[313268577,1707061839800,-201.0,0.0004489,28]
[313268578,1707061839810,-245.09433825,0.0004498,5]
[313268579,1707061839819,-5000.0,0.00044986,4]
[313268580,1707061839829,-840.85262393,0.00045,120]
[313268581,1707061839838,-302.64868085,0.00045,14]
[313268582,1707061839848,-172.57231416,0.00045,4]
[313268583,1707061839858,-546.70658259,0.00045116,5]
[313268584,1707061839867,-350.83,0.00045149,2]
[313268585,1707061839875,-7294.98741766,0.0004519,12]
[313268586,1707061839885,-1626.0,0.0004519,2]
[313268587,1707061839894,-404.0,0.0004519,2]
[313268588,1707061839905,-5904.0,0.000452,2]
[313268589,1707061839914,-150.0,0.00045235,2]
[313268590,1707061839923,-272.61770195,0.00045407,12]
[313268591,1707061839932,-150.0,0.00045422,2]
[313268592,1707061839942,-263.3976316,0.00045513,17]
[313268593,1707061839951,-151.0,0.00045543,2]
[313268594,1707061839960,-847.0,0.0004579,2]
[313268595,1707061839970,-666.0,0.0004589,2]
[313268596,1707061839980,-150.0,0.00045918,2]
[313268597,1707061839989,-1000.0,0.00046,2]
[313268598,1707061839998,-213.00717621,0.00046,30]
[313268599,1707061840007,-257.9,0.00046,60]
[313268600,1707061840016,-21087.0,0.00046059,30]
[313268601,1707061840026,-257.9,0.00046137,60]
[313268602,1707061840034,-257.9,0.00046274,60]
[313268603,1707061840044,-302.0,0.00046308,4]
[313268604,1707061840053,-171.28,0.00046389,15]
[313268605,1707061840062,-171.28,0.00046389,15]
[313268606,1707061840071,-171.28,0.00046389,15]
[313268607,1707061840080,-171.28,0.00046389,15]
[313268608,1707061840089,-296613.51122198,0.0004639,3]
[313268609,1707061840101,-1267.65875993,0.0004639,3]
[313268610,1707061840112,-438.85140566,0.0004639,3]
[313268611,1707061840124,-603.45575644,0.0004639,3]
[313268612,1707061840135,-5852.94007926,0.0004639,3]
[313268613,1707061840147,-1233.86748,0.0004639,3]
[313268614,1707061840158,-804.528,0.0004639,3]
[313268615,1707061840169,-1120.6283,0.0004639,3]
[313268616,1707061840181,-343.36644218,0.0004639,3]
[313268617,1707061840192,-846.249995,0.0004639,3]
[313268618,1707061840208,-126731.63337127,0.0004639,3]
[313268619,1707061840219,-27682.79402436,0.0004639,3]
[313268620,1707061840231,-26391.22411039,0.0004639,3]
[313268621,1707061840241,-90656.30856448,0.0004639,3]
[313268622,1707061840253,-102307.10886334,0.0004639,3]
[313268623,1707061840262,-1665.0,0.0004639,2]
[313268624,1707061840271,-483.0,0.0004639,2]
[313268625,1707061840280,-257.9,0.00046411,60]
[313268626,1707061840289,-588.16615376,0.00046424,22]
[313268627,1707061840299,-150.0,0.00046431,2]
[313268628,1707061840308,-207.02874715,0.00046435,2]
[313268629,1707061840317,-4810.77420662,0.00046435,2]
[313268630,1707061840327,-152.95666183,0.00046445,31]
[313268631,1707061840336,-5000.0,0.00046455,7]
[313268632,1707061840345,-7294.98741766,0.00046455,12]
[313268633,1707061840354,-198.50359611,0.00046465,22]
[313268634,1707061840363,-2248.0,0.0004649,2]
[313268635,1707061840373,-645.0,0.0004649,2]
[313268636,1707061840382,-169.85944706,0.00046521,30]
[313268637,1707061840391,-268.88758606,0.00046521,30]
[313268638,1707061840400,-222.09983313,0.00046521,30]
[313268639,1707061840410,-233.51266207,0.00046521,30]
[313268640,1707061840419,-253.1783146,0.00046521,30]
[313268641,1707061840428,-181.45771538,0.00046521,30]
[313268642,1707061840437,-174.85752548,0.00046521,30]
[313268643,1707061840447,-152.75543919,0.00046521,30]
[313268644,1707061840457,-105157.58367,0.00046525,10]
[313268645,1707061840466,-220.30751523,0.00046525,2]
[313268646,1707061840475,-73039.95308401,0.00046534,12]
[313268647,1707061840823,-660.59475388,0.00039584,28]
[313268648,1707061840835,-1231.30288841,0.00039584,28]
[313268649,1707061840844,-2234.15693799,0.0004,28]
[313268650,1707061840853,-520.8216842,0.00041813,30]
[313268651,1707061840865,-1553.70442431,0.00041813,30]
[313268652,1707061840874,-1799.40931121,0.0004369,30]
[313268653,1707061840883,-2000.01,0.00046534,12]
[313268654,1707061841578,-439.10667098,0.00046534,12]
[313268670,1707061843191,-16196.19312917,0.00046534,12]
[313268684,1707061846355,-500.0,0.0003,2]
[313268685,1707061846365,-374.67744232,0.00046533,4]
[313268686,1707061846375,-467.69663291,0.00046533,4]
[313268687,1707061846385,-270.45243273,0.00046533,4]
[313268688,1707061846394,-2267.11411044,0.00046533,4]
[313268689,1707061846409,-660.18732474,0.00046533,4]
[313268690,1707061846419,-154.605,0.00046534,30]
[313268691,1707061846429,-399.3761965,0.00046534,12]
[313268692,1707061846448,-599.27979208,0.00046534,12]
[313268693,1707061846474,-133470.69107426,0.00046534,12]
[313268694,1707061846483,-137754.62867164,0.00046534,10]
[313268696,1707061846495,-177718.12233836,0.00046534,10]
[313268698,1707061846504,-257.9,0.00046548,60]
[313268699,1707061846516,-7641.24984306,0.00046555,2]
[313268701,1707061846526,-17603.69689872,0.00046565,10]
[313268731,1707061878644,2717.84716317,0.00021,2]
[313268732,1707061891899,537.46133876,0.0001,2]
[313268733,1707061892680,941.50891853,0.00022,2]
[313268734,1707061894198,910.30236071,0.000225,2]
[313268735,1707061896495,8000.0,0.00011,2]
[313268736,1707061913303,33290.85667093,6.94e-05,2]
[313268737,1707061920492,6235.92821068,0.000155,2]
[313268738,1707061924754,625.2392996,0.0002,2]
[313268739,1707061946058,1887.23531857,0.00015,2]
[313268740,1707061955258,221.28797249,0.0002211,2]
[313268741,1707061982872,32616.51751045,0.000225,2]
[313268742,1707061990359,205.0,9.8e-05,2]
[313268743,1707061993957,4931.35856083,0.0001305,2]
[313268744,1707061994510,239.48246866,0.000101,2]
[313268745,1707062019698,3677.02387359,0.0002,2]
[313268746,1707062020750,3199.01053178,0.00022076,2]
[313268747,1707062029830,1632.67588459,0.000181,2]
[313268748,1707062034005,244.38823347,0.00020695,2]
[313268749,1707062036890,3950.0,0.0002,2]
[313268750,1707062042786,3195.91206529,0.00022075,2]
[313268751,1707062048440,1000.0,0.000135,2]
[313268752,1707062048559,1916.24,0.0002,2]
[313268753,1707062048633,283.43599014,0.000125,2]
[313268763,1707062060315,235.96257155,0.00022,2]
[313268764,1707062064789,206.25009078,0.0001,2]
[313268766,1707062093094,499.46515759,0.000195,2]
[313268767,1707062113485,443.27087566,0.00022995,10]
[313268768,1707062130410,550.0,0.00022,3]
[313268771,1707062144304,1501.61,0.00025,30]
[313268772,1707062148738,2815.73838894,0.0001949,2]
[313268774,1707062176026,200.0,0.00019393,2]
[313268775,1707062186464,177.34,0.00022022,2]
[313268776,1707062187209,180.31,0.00022022,10]
[313268777,1707062228775,155.59,0.00021947,2]
[313268778,1707062240961,640.8,0.00021953,2]
[313268779,1707062299401,250.0,0.00021934,2]
[313268780,1707062315862,157.56,0.00022053,2]
[313268781,1707062316075,157.56,0.00022168,2]
[313268782,1707062316274,157.56,0.00022283,2]
[313268783,1707062316487,157.56,0.00022398,2]
[313268784,1707062341688,23900.0,0.00021886,2]
[313268786,1707062348406,825.62,0.00021892,2]
[313268787,1707062352794,283.83163888,0.00022509,2]
[313268788,1707062353891,403.19810569,0.00021726,2]
[313268789,1707062358000,944.53412148,0.00022509,2]
[313268790,1707062360623,229.14462659,0.00022509,2]
[313268791,1707062362831,165.44314355,0.00022509,2]
[313268793,1707062363923,155.0,0.00022509,2]
[313268794,1707062366541,257.9,0.00021993,2]
[313268795,1707062366744,260.81174276,0.00022398,2]
[313268796,1707062367835,257.9,0.0002213,2]
[313268797,1707062368442,311.23513441,0.00022509,2]
[313268798,1707062369119,257.9,0.00022267,2]
[313268799,1707062370587,257.9,0.00022404,2]
[313268800,1707062371850,731.97994428,0.00022509,2]
[313268801,1707062373247,404.41481397,0.00022398,2]
[313268802,1707062373908,403.19810569,0.00021726,2]
[313268803,1707062374888,761.59097852,0.00022509,2]
[313268804,1707062378235,1108.62585777,0.00022398,2]
[313268805,1707062380206,2329.67917957,0.00022398,2]
[313268806,1707062381492,808.63102708,0.00022398,2]
[313268807,1707062382128,155.60626983,0.00022398,2]
[313268808,1707062382759,237.89021972,0.00022412,2]
[313268809,1707062383219,9693.06077553,0.00022398,2]
[313268810,1707062386497,1025.76280394,0.00022398,2]
[313268811,1707062388329,488.68522248,0.00022398,2]
[313268812,1707062390257,5204.41118884,0.00022398,2]
[313268813,1707062390310,362.084026,0.00022398,2]
[313268814,1707062390349,235.47214903,0.00022398,2]
[313268815,1707062390726,260.81174276,0.00022398,2]
[313268816,1707062390754,155.0,0.00022,2]
[313268817,1707062391106,6099.83638977,0.00022398,2]
[313268818,1707062391639,20434.55252657,0.00022286,2]
[313268819,1707062393199,155.0,0.00022509,2]
[313268820,1707062395889,403.19810569,0.00021726,2]
[313268821,1707062396987,4642.51403218,0.00022509,2]
[313268822,1707062398839,3198.37181468,0.00022071,2]
[313268823,1707062401237,284.99180822,0.00022398,2]
[313268824,1707062404169,2329.67917957,0.00022398,2]
[313268825,1707062406828,260.81174276,0.00022398,2]
[313268826,1707062407129,814.32002419,0.00022398,2]
[313268827,1707062407822,155.0,0.0002,2]
[313268828,1707062408485,1024.5188225,0.00022398,2]
[313268829,1707062410296,362.084026,0.00022398,2]
[313268830,1707062410345,235.47214903,0.00022398,2]
[313268831,1707062411980,1140.68860112,0.00022509,2]
[313268832,1707062412135,156.21324294,0.00022398,2]
[313268833,1707062412250,5204.41118884,0.00022398,2]
[313268834,1707062412410,250.0,0.00021904,2]
[313268835,1707062412739,185.86400761,0.00022,2]
[313268836,1707062413239,6099.83638977,0.00022398,2]
[313268837,1707062413800,1045.412009,0.00022509,2]
[313268838,1707062413888,403.19810569,0.00021726,2]
[313268839,1707062419245,284.99180822,0.00022398,2]
[313268840,1707062421810,155.0,0.0002,2]
[313268841,1707062422184,498.118635,0.00022398,2]
[313268842,1707062426879,260.81174276,0.00022398,2]
[313268843,1707062428346,235.47214903,0.00022398,2]
[313268844,1707062430250,5204.41118884,0.00022398,2]
[313268845,1707062433092,219.84765612,0.00022398,2]
[313268846,1707062438635,362.084026,0.00022398,2]
[313268847,1707062439366,1036.95504626,0.00022398,2]
[313268848,1707062440274,155.0,0.0002,2]
[313268849,1707062441892,403.19810569,0.00021726,2]
[313268850,1707062441954,1123.67870691,0.00022398,2]
[313268851,1707062442164,2329.67917957,0.00022398,2]
[313268852,1707062444353,235.47214903,0.00022398,2]
[313268853,1707062444724,260.81174276,0.00022398,2]
[313268854,1707062444849,155.0,0.00022398,2]
[313268855,1707062448250,4934.87413481,0.00022398,2]
[313268856,1707062453297,284.99180822,0.00022398,2]
[313268857,1707062454305,331.20587174,0.00022398,2]
[313268858,1707062457341,1036.14577912,0.00022398,2]
[313268859,1707062459893,403.19810569,0.00021726,2]
[313268860,1707062460174,2329.67917957,0.00022398,2]
[313268861,1707062461808,155.0,0.0002,2]
[313268862,1707062462759,260.81174276,0.00022398,2]
[313268863,1707062463348,13074.24,0.00021909,2]
[313268864,1707062464185,1123.67870691,0.00022398,2]
[313268865,1707062464841,1887.5269231,0.00022071,2]
[313268866,1707062465695,155.0,0.00022509,2]
[313268867,1707062466761,155.0,0.00022398,2]
[313268868,1707062468364,235.47214903,0.00022398,2]
[313268869,1707062469242,417.46835655,0.00022398,2]
[313268870,1707062471531,500.0,0.00021909,2]
[313268871,1707062477114,2000.0,0.00021909,2]
[313268872,1707062479350,1036.55041269,0.00022398,2]
[313268873,1707062479727,500.0,0.00022509,2]
[313268874,1707062479817,308.90936651,0.0002,2]
[313268875,1707062479948,1122.28696773,0.00022398,2]
[313268876,1707062482522,155.0,0.00022509,2]
[313268877,1707062482765,155.0,0.00022398,2]
[313268878,1707062484088,2186.39244281,0.00022174,2]
[313268879,1707062488127,155.0,0.00022509,2]
[313268880,1707062488373,235.65715361,0.00022398,2]
[313268881,1707062489241,200.0,0.00022509,2]
[313268882,1707062490730,260.81174276,0.00022398,2]
[313268883,1707062491914,403.19810569,0.00021726,2]
[313268884,1707062495549,385.53343101,0.00022398,2]
[313268885,1707062495698,283.52752235,0.00022398,2]
[313268886,1707062495975,1123.21479385,0.00022398,2]
[313268887,1707062500183,2330.61083222,0.00022398,2]
[313268888,1707062502773,155.0,0.00022398,2]
[313268889,1707062508362,235.28714445,0.00022398,2]
[313268890,1707062513915,403.19810569,0.00021074,2]
[313268891,1707062513969,1123.21479385,0.00022398,2]
[313268892,1707062514728,260.81174276,0.00021726,2]
[313268893,1707062515680,283.52752235,0.00022398,2]
[313268895,1707062522354,2330.61083222,0.00021726,2]
[313268896,1707062524044,1418.69385824,0.00021509,2]
[313268897,1707062527896,508.47094165,0.00021074,2]
[313268898,1707062532737,167.87596721,0.00021726,2]
[313268899,1707062533970,1123.21479385,0.00021726,2]
[313268900,1707062535691,283.52752235,0.00021726,2]
[313268901,1707062536388,235.56496837,0.00021726,2]
[313268902,1707062537818,171.17,0.00021916,2]
[313268903,1707062538212,2330.61083222,0.00021726,2]
[313268904,1707062553691,283.52752235,0.00021726,2]
[313268905,1707062554375,203.37826466,0.00021726,2]
[313268906,1707062555978,1123.21479385,0.00021726,2]
[313268907,1707062556206,2330.61083222,0.00021726,2]
[313268908,1707062556666,500.0,0.00021914,3]
[313268909,1707062571688,283.52752235,0.00021726,2]
[313268910,1707062574195,1929.61907392,0.00021726,2]
[313268911,1707062575976,317.10271994,0.00021726,2]
[313268912,1707062582490,564.34,0.00021903,2]
[313268913,1707062585390,731.97994428,0.00022509,2]
[313268914,1707062589689,283.52752235,0.00021726,2]
[313268915,1707062603142,200.0,0.00021914,2]
[313268916,1707062604145,155.0,0.00022509,2]
[313268917,1707062609695,283.52752235,0.00021726,2]
[313268918,1707062628189,295.28230981,0.00022509,2]
[313268919,1707062629495,166.32,0.00021931,2]
[313268920,1707062641465,25505.65,0.0002193,2]
[313268921,1707062685829,177.47,0.00021919,2]
[313268922,1707062690224,396.26,0.00019998,2]
[313268923,1707062690437,396.26,0.00022262,2]
[313268924,1707062698801,155.0,0.00022509,2]
[313268925,1707062711142,1005.01,0.00021919,2]
[313268926,1707062728897,3197.13386433,0.00022067,2]
[313268927,1707062729226,176.49,0.00016712,2]
[313268928,1707062736992,157.49,0.00022082,2]
[313268929,1707062737211,157.49,0.00022247,2]
[313268930,1707062737474,157.49,0.00022411,2]
[313268931,1707062763114,339.5,0.00021922,2]
[313268932,1707062775006,23900.0,0.00021922,2]
[313268933,1707062779321,758.89,0.00021919,2]
[313268934,1707062793839,155.0,0.00022509,2]
[313268935,1707062797756,250.0,0.00021921,2]
[313268936,1707062838076,155.45028316,0.00020687,2]
[313268937,1707062862301,250.0,0.00021922,2]
[313268938,1707062902006,2000.0,0.00021899,2]
[313268939,1707062908044,1121.16406462,0.00021922,2]
[313268940,1707062919852,1668.0,0.000252,120]
[313268941,1707062924126,155.0,0.00021922,2]
[313268942,1707062926743,155.0,0.00021922,2]
[313268943,1707062929065,1771.8,0.00021899,2]
[313268950,1707062958123,160.09175453,0.00021899,2]
[313268951,1707062981238,167.47,0.00021888,2]
[313268952,1707062988189,1047.6799468,0.00021899,2]
[313268953,1707063001038,187.1093,0.00022441,2]
[313268954,1707063006840,257.9,0.00021986,2]
[313268955,1707063008028,257.9,0.00022123,2]
[313268956,1707063009300,257.9,0.0002226,2]
[313268957,1707063010585,257.9,0.00022397,2]
[313268958,1707063028796,200.0,0.00021893,2]
[313268982,1707063032482,-257.9,0.00022534,2]
[313268983,1707063032492,-375.1126612,0.00022534,2]
[313268984,1707063032503,-58.36615141,0.00022535,2]
[313269160,1707063038332,-155.0,0.00022533,2]
[313269161,1707063038342,-155.0,0.00022534,2]
[313269162,1707063038351,-96.63384859,0.00022535,2]
[313269163,1707063038360,-157.49,0.00022575,2]
[313269164,1707063038369,-257.9,0.00022671,2]
[313269165,1707063038379,-157.49,0.0002274,2]
[313269166,1707063038389,-574.0,0.00022756,2]
[313269167,1707063038398,-945.30248096,0.00022761,2]
[313269168,1707063038407,-1054.73834187,0.00022765,2]
[313269169,1707063038416,-2133.7099,0.00022789,2]
[313269170,1707063038425,-257.9,0.00022808,2]
[313269171,1707063038435,-500.0,0.00022812,2]
[313269172,1707063038444,-696.99,0.00022815,2]
[313269173,1707063038453,-499.99,0.00022815,2]
[313269174,1707063038462,-300.0,0.0002282,2]
[313269175,1707063038472,-500.0,0.00022821,2]
[313269176,1707063038481,-500.0,0.0002283,2]
[313269177,1707063038490,-500.0,0.00022838,2]
[313269178,1707063038500,-500.0,0.00022847,2]
[313269179,1707063038509,-500.0,0.00022856,2]
[313269180,1707063038518,-500.0,0.00022865,2]
[313269181,1707063038527,-500.0,0.00022874,2]
[313269182,1707063038536,-500.0,0.00022882,2]
[313269183,1707063038545,-4770.8974,0.00022882,2]
[313269184,1707063038555,-155.92152823,0.00022886,2]
[313269185,1707063038563,-212.9729814,0.00022888,2]
[313269186,1707063038572,-898.89080388,0.00022888,2]
[313269187,1707063038581,-177.91940224,0.00022888,2]
[313269188,1707063038590,-1000.0,0.00022889,2]
[313269189,1707063038600,-27066.39628564,0.0002289,2]
[313269190,1707063038609,-16000.0,0.00022891,2]
[313269191,1707063038618,-500.0,0.00022891,2]
[313269192,1707063038626,-212.97298139,0.00022894,2]
[313269193,1707063038635,-898.89080387,0.00022894,2]
[313269194,1707063038644,-177.91940222,0.00022894,2]
[313269195,1707063038653,-155.7977244,0.00022896,2]
[313269196,1707063038662,-16000.0,0.000229,2]
[313269197,1707063038672,-500.0,0.000229,2]
[313269198,1707063038680,-1889.28,0.000229,2]
[313269199,1707063038690,-7994.12418422,0.000229,2]
[313269200,1707063038699,-151.55964933,0.000229,2]
[313269201,1707063038708,-212.97298139,0.000229,2]
[313269203,1707063038717,-898.89080387,0.000229,2]
[313269205,1707063038726,-177.91940222,0.000229,2]
[313269207,1707063038735,-1978.61439613,0.000229,2]
[313269209,1707063038744,-157.49,0.00022904,2]
[313269211,1707063038753,-257.9,0.00022945,2]
[313269213,1707063038762,-800.0,0.00022959,2]
[313269215,1707063038770,-220.30751523,0.00022976,2]
[313269217,1707063038780,-484.23466522,0.00022982,2]
[313269219,1707063038788,-167.47,0.00022982,2]
[313269221,1707063038797,-228.83453251,0.00022984,2]
[313269223,1707063038807,-1155.03241176,0.00022984,2]
[313269225,1707063038816,-2314.06344386,0.00022985,2]
[313269227,1707063038825,-385.66162827,0.00022985,2]
[313269229,1707063038834,-500.0,0.00022985,2]
[313269231,1707063038843,-500.0,0.00022985,2]
[313269233,1707063038852,-500.0,0.00022985,2]
[313269235,1707063038861,-500.0,0.00022985,2]
[313269237,1707063038870,-500.0,0.00022985,2]
[313269239,1707063038880,-500.0,0.00022985,2]
[313269241,1707063038889,-351.76387424,0.00022985,2]
[313269243,1707063038898,-500.0,0.00022985,2]
[313269245,1707063038907,-500.0,0.00022985,2]
[313269247,1707063038917,-411.49644366,0.00022985,2]
[313269249,1707063038926,-500.0,0.00022985,2]
[313269251,1707063038935,-500.0,0.00022985,2]
[313269253,1707063038944,-1115838.58719034,0.00022985,3]
[313269255,1707063038954,-1017230.6709123,0.00022986,2]
[313269258,1707063038978,-727.11163686,0.00022986,2]
[313269261,1707063038989,-741.27723955,0.00022986,2]
[313269263,1707063039000,-420.8888349,0.00022986,2]
[313269266,1707063039019,-15135.21732614,0.00022986,2]
[313269268,1707063039030,-26317.06570948,0.00022986,2]
[313269270,1707063039039,-652.13273244,0.00022988,2]
[313269272,1707063039048,-169.71450175,0.0002299,2]
[313269274,1707063039057,-243.28307725,0.0002299,2]
[313269276,1707063039066,-155.87775606,0.0002299,2]
[313269278,1707063039075,-630.38045456,0.00022991,2]